bitfinex/quotes_BTCUSD_20251015
["timestamp","ask_amount","ask_price","bid_price","bid_amount"]
[1760520241042,1.06501828,112810.0,112800.0,0.0367262]
[1760520241238,5.88392828,112810.0,112800.0,0.00114943]
[1760520241444,5.90301741,112810.0,112800.0,0.00114943]
[1760520241646,5.90302269,112810.0,112800.0,0.00114943]
[1760520243288,5.90303251,112810.0,112800.0,0.00114943]
[1760520243545,5.94160769,112810.0,112800.0,0.00114943]
[1760520243736,6.55424738,112810.0,112800.0,0.00114943]
[1760520243886,6.02285907,112810.0,112800.0,0.00114943]
[1760520244088,6.53037369,112810.0,112800.0,0.00114943]
[1760520244313,6.57811523,112810.0,112800.0,0.00114943]
[1760520244495,6.63598866,112810.0,112800.0,0.00114943]
[1760520244986,6.63698866,112810.0,112800.0,0.00114943]
[1760520245948,6.63698866,112810.0,112800.0,1e-08]
[1760520245949,6.60902672,112810.0,112800.0,1e-08]
[1760520246242,5.33623068,112790.0,112780.0,0.28698108]
[1760520246442,6.00826692,112790.0,112780.0,0.28698108]
[1760520246854,6.01259563,112790.0,112780.0,0.28698108]
[1760520247059,5.9914975,112790.0,112780.0,0.28698108]
[1760520247438,6.05498817,112790.0,112780.0,0.28698108]
[1760520247809,5.99364632,112790.0,112780.0,0.28698108]
[1760520248012,5.48444659,112790.0,112780.0,0.28698108]
[1760520248300,5.8082832,112790.0,112780.0,0.28698108]
[1760520248502,5.927088,112790.0,112780.0,0.28698108]
[1760520248709,5.75176732,112790.0,112780.0,0.46431748]
[1760520248920,0.03859378,112790.0,112780.0,0.46431748]
[1760520249143,0.03859378,112790.0,112780.0,0.64056387]
[1760520249144,0.01949483,112790.0,112780.0,0.64056387]
[1760520249345,0.01849483,112790.0,112780.0,0.64056387]
[1760520249555,0.01849483,112790.0,112780.0,0.64060387]
[1760520249762,0.00214882,112790.0,112780.0,1.17199218]
[1760520250023,0.00214882,112790.0,112780.0,1.17203218]
[1760520250223,1e-08,112790.0,112780.0,1.52574458]
[1760520250458,1e-08,112790.0,112780.0,1.63790458]
[1760520250673,1e-08,112790.0,112780.0,1.64758341]
[1760520250878,1e-08,112790.0,112780.0,6.64758341]
[1760520251100,0.01635334,112830.0,112820.0,0.70866184]
[1760520251311,0.0717521,112850.0,112840.0,0.17724211]
[1760520251522,0.00014987,112850.0,112840.0,0.28948211]
[1760520251738,0.01634534,112870.0,112860.0,0.1772107]
[1760520251948,0.01634534,112870.0,112860.0,0.2899476]
[1760520252382,0.17725234,112900.0,112880.0,0.17716618]
[1760520252383,0.70864065,112900.0,112880.0,0.17716618]
[1760520252589,0.17716361,112890.0,112880.0,0.02338579]
[1760520252795,5.54379296,112890.0,112880.0,0.02338579]
[1760520252997,0.72488296,112890.0,112870.0,0.30651059]
[1760520253213,0.72488296,112890.0,112870.0,0.28943458]
[1760520253418,0.72488296,112890.0,112880.0,0.19489723]
[1760520253419,0.19349465,112890.0,112880.0,0.19489723]
[1760520253619,0.19349465,112890.0,112880.0,0.1771793]
[1760520253816,0.1771793,112880.0,112860.0,0.18656758]
[1760520254111,0.1771793,112880.0,112870.0,0.3071545]
[1760520254112,0.01633104,112880.0,112870.0,0.3071545]
[1760520254330,0.01633104,112880.0,112870.0,0.289435]
[1760520254679,0.1771641,112890.0,112870.0,0.289435]
[1760520254891,0.19346378,112890.0,112870.0,0.289435]
[1760520255518,0.19346329,112890.0,112880.0,0.1771793]
[1760520255826,0.19346329,112890.0,112880.0,0.22029211]
[1760520256043,0.17715963,112930.0,112900.0,0.17714563]
[1760520256263,0.17711973,112920.0,112900.0,0.28937689]
[1760520256473,0.19340901,112920.0,112900.0,0.28937689]
[1760520256674,0.01628928,112920.0,112910.0,0.17713222]
[1760520256882,0.01627423,112930.0,112920.0,0.17711654]
[1760520257088,4.81891,112930.0,112920.0,0.28939654]
[1760520257298,0.01642445,112930.0,112920.0,0.28939654]
[1760520257754,0.00014987,112930.0,112920.0,0.28939654]
[1760520257960,0.00014987,112930.0,112920.0,0.22014771]
[1760520258170,0.00014987,112930.0,112920.0,0.33246771]
[1760520258618,0.17725072,112930.0,112920.0,0.15535117]
[1760520258825,1.22489431,112930.0,112920.0,0.001]
[1760520259043,1.22489431,112930.0,112920.0,0.01871165]
[1760520259252,0.693506,112930.0,112920.0,0.01871165]
[1760520259464,0.693506,112930.0,112920.0,0.01771165]
[1760520259671,1.22489431,112930.0,112920.0,0.02414931]
[1760520259880,1.22489431,112930.0,112890.0,0.24891147]
[1760520259881,0.17713222,112910.0,112890.0,0.24891147]
[1760520260091,0.1933875,112910.0,112900.0,0.17714791]
[1760520260300,0.1933875,112910.0,112900.0,0.3071827]
[1760520260499,0.1933875,112910.0,112900.0,0.23275733]
[1760520260848,0.01625528,112910.0,112900.0,0.34507733]
[1760520261053,0.51711766,112920.0,112910.0,0.17713222]
[1760520261269,0.51711766,112920.0,112880.0,0.76053938]
[1760520261270,0.17713222,112910.0,112880.0,0.04311281]
[1760520261462,0.17716361,112890.0,112880.0,0.04311281]
[1760520261661,0.19335578,112890.0,112870.0,0.36130041]
[1760520261892,0.19335578,112890.0,112880.0,0.11236]
[1760520262101,0.19335578,112890.0,112880.0,0.11232]
[1760520262305,0.72474409,112890.0,112860.0,0.18607021]
[1760520262545,0.72489387,112890.0,112870.0,0.177195]
[1760520262744,0.19350556,112890.0,112870.0,0.177195]
[1760520262951,0.01634195,112890.0,112880.0,0.19489723]
[1760520263164,0.01634195,112890.0,112880.0,0.1771793]
[1760520263560,0.00014978,112890.0,112880.0,0.1771793]
[1760520263765,0.00014978,112890.0,112880.0,0.26575556]
[1760520263969,0.00014978,112890.0,112880.0,0.37807556]
[1760520264598,0.00014978,112890.0,112880.0,0.37907556]
[1760520265222,0.50014978,112890.0,112880.0,0.37907556]
[1760520265422,0.50014978,112890.0,112880.0,0.26675556]
[1760520265627,0.50014978,112890.0,112880.0,0.37907556]
[1760520265859,0.67731339,112890.0,112880.0,0.26675556]
[1760520266073,0.67731339,112890.0,112880.0,0.001]
[1760520266274,1.2087017,112890.0,112880.0,0.11336]
[1760520266475,0.67731339,112890.0,112880.0,0.1781793]
[1760520266677,0.50014978,112890.0,112880.0,0.2905393]
[1760520267230,0.67731339,112890.0,112880.0,0.11236]
[1760520267443,0.1771793,112880.0,112860.0,0.23045259]
[1760520267646,1.01731339,112890.0,112880.0,0.001]
[1760520267851,1.5487017,112890.0,112880.0,0.001]
[1760520268081,1.5487017,112890.0,112880.0,0.1771793]
[1760520268301,1.01731339,112890.0,112870.0,0.289515]
[1760520268505,1.01731339,112890.0,112880.0,0.001]
[1760520268924,1.03348801,112890.0,112870.0,0.34151176]
[1760520269128,0.1771793,112880.0,112870.0,0.22919176]
[1760520269303,0.1771793,112880.0,112870.0,0.05199676]
[1760520269520,0.1771793,112880.0,112870.0,0.11232]
[1760520269888,0.19335422,112880.0,112870.0,0.11232]
[1760520270302,0.177195,112870.0,112860.0,0.17442345]
[1760520270579,0.72476101,112870.0,112860.0,0.17442345]
[1760520270738,0.70858331,112870.0,112860.0,0.17442345]
[1760520271067,0.70858331,112870.0,112860.0,0.15670238]
[1760520271288,0.1772264,112850.0,112840.0,0.18604534]
[1760520271508,0.1772264,112850.0,112840.0,0.17724211]
[1760520271712,0.1772264,112850.0,112840.0,0.28956211]
[1760520271912,1.04860954,112860.0,112850.0,0.1772264]
[1760520272116,0.53340085,112860.0,112850.0,0.1772264]
[1760520272439,0.53340085,112860.0,112850.0,0.22440215]
[1760520272675,0.53340085,112860.0,112850.0,0.04717575]
[1760520273081,0.53340085,112860.0,112850.0,0.22440215]
[1760520273709,0.53340085,112860.0,112850.0,0.04717575]
[1760520273915,1.06478916,112860.0,112850.0,0.0004969]
[1760520274089,0.53340085,112860.0,112850.0,0.01921954]
[1760520274322,1.06478916,112860.0,112850.0,0.01921954]
[1760520274526,0.53340085,112860.0,112850.0,0.01921954]
[1760520274700,0.53342075,112860.0,112850.0,0.01821954]
[1760520275144,0.53342075,112860.0,112850.0,0.0377657]
[1760520275899,0.53343258,112860.0,112850.0,0.0377657]
[1760520276312,0.5,112890.0,112880.0,0.1771793]
[1760520276535,0.51623452,112890.0,112880.0,0.1771793]
[1760520276743,0.51623452,112890.0,112880.0,0.26686138]
[1760520277570,0.51623452,112890.0,112880.0,0.08968208]
[1760520277780,0.51623452,112890.0,112880.0,0.1771793]
[1760520278346,0.5162664,112890.0,112880.0,0.1781793]
[1760520278550,0.5163026,112890.0,112880.0,0.1781793]
[1760520279325,0.51632079,112890.0,112880.0,0.1781793]
[1760520279904,0.51632079,112890.0,112880.0,0.1771793]
[1760520280261,0.51632079,112890.0,112880.0,0.32593673]
[1760520280437,0.51632079,112890.0,112880.0,0.21361673]
[1760520280798,0.51632079,112890.0,112880.0,0.32593673]
[1760520281666,0.51632079,112890.0,112880.0,0.21361673]
[1760520282415,0.51632079,112890.0,112880.0,0.32589673]
[1760520284057,0.51632079,112890.0,112880.0,0.97802881]
[1760520284671,0.5,112890.0,112880.0,0.95543893]
[1760520284822,0.5,112890.0,112880.0,1.06771893]
[1760520285476,0.5,112890.0,112880.0,0.30330685]
[1760520285878,0.5,112890.0,112880.0,0.30230685]
[1760520286081,0.5,112890.0,112880.0,0.41458685]
[1760520286307,0.5,112890.0,112880.0,0.30430685]
[1760520286488,0.5,112890.0,112880.0,0.41658685]
[1760520286694,0.5,112890.0,112880.0,0.41654685]
[1760520286897,0.5,112890.0,112880.0,0.30430685]
[1760520287304,0.5,112890.0,112880.0,0.41654685]
[1760520287770,0.5,112890.0,112880.0,0.30430685]
[1760520289125,0.5,112890.0,112880.0,0.41654685]
[1760520290647,0.5,112890.0,112880.0,0.30430685]
[1760520290850,0.516349,112890.0,112880.0,0.002]
[1760520291056,0.516349,112890.0,112880.0,0.1791793]
[1760520291878,0.516349,112890.0,112880.0,0.2893793]
[1760520292244,0.5,112890.0,112880.0,0.2913793]
[1760520292430,0.51635112,112890.0,112880.0,0.1791793]
[1760520292643,0.51635112,112890.0,112880.0,0.21481673]
[1760520292846,6.16455628,112890.0,112880.0,0.002]
[1760520293052,6.57895,112890.0,112880.0,0.002]
[1760520293506,6.61078365,112890.0,112880.0,0.002]
[1760520293725,6.6230907,112890.0,112880.0,0.001]
[1760520293971,0.34,112880.0,112860.0,0.18605866]
[1760520294178,0.53352989,112880.0,112870.0,0.0177195]
[1760520294387,1.20472979,112880.0,112870.0,0.0177195]
[1760520294606,0.177195,112870.0,112860.0,0.04621175]
[1760520294829,0.53354559,112870.0,112860.0,0.04621175]
[1760520295034,0.55261341,112870.0,112860.0,0.22342245]
[1760520295472,0.55261341,112870.0,112860.0,0.04621175]
[1760520295714,0.55261341,112870.0,112860.0,0.1772107]
[1760520295950,0.37541841,112870.0,112860.0,0.19493177]
[1760520296143,0.53354559,112870.0,112860.0,0.1772107]
[1760520296373,0.55261341,112870.0,112860.0,0.1772107]
[1760520296614,0.37541841,112870.0,112860.0,0.1782107]
[1760520296839,0.53354559,112870.0,112860.0,0.21380318]
[1760520297051,0.55261341,112870.0,112860.0,0.21380318]
[1760520297675,0.37541841,112870.0,112860.0,0.21380318]
[1760520297899,0.53354559,112870.0,112860.0,0.21380318]
[1760520298253,0.37541841,112870.0,112860.0,0.21380318]
[1760520298495,0.35635059,112870.0,112860.0,0.21380318]
[1760520299675,0.53354559,112870.0,112860.0,0.21380318]
[1760520299880,0.55260746,112870.0,112860.0,0.21380318]
[1760520300093,0.35635059,112870.0,112860.0,0.21380318]
[1760520300968,0.01635059,112870.0,112860.0,0.21380318]
[1760520301173,0.35634575,112880.0,112870.0,0.177195]
[1760520301320,0.35634529,112880.0,112870.0,0.21629482]
[1760520301763,0.01634529,112880.0,112870.0,0.32849482]
[1760520302006,0.5,112890.0,112880.0,0.1771793]
[1760520302214,0.51635062,112890.0,112880.0,0.1771793]
[1760520303904,0.51635062,112890.0,112880.0,0.1781793]
[1760520304105,0.51635062,112890.0,112880.0,0.22984671]
[1760520305581,0.51635062,112890.0,112880.0,0.34204671]
[1760520305933,0.30069161,112890.0,112880.0,0.34204671]
[1760520306320,0.28434099,112890.0,112880.0,0.34204671]
[1760520307451,0.28434099,112890.0,112880.0,0.22984671]
[1760520307601,0.28434099,112890.0,112880.0,0.34200671]
[1760520307803,0.10710673,112890.0,112880.0,0.2913393]
[1760520308008,0.10710673,112890.0,112880.0,0.97965366]
[1760520308806,1e-08,112890.0,112880.0,1.31865366]
[1760520309005,1e-08,112890.0,112880.0,1.31965366]
[1760520309450,1e-08,112890.0,112880.0,6.29718378]
[1760520309657,1e-08,112890.0,112880.0,6.40734378]
[1760520309831,1e-08,112890.0,112880.0,6.40838378]
[1760520310029,1e-08,112890.0,112880.0,6.29818378]
[1760520310232,1e-08,112890.0,112880.0,6.40938378]
[1760520310429,1e-08,112890.0,112880.0,5.7592517]
[1760520310683,1e-08,112890.0,112880.0,6.41138378]
[1760520311214,1e-08,112890.0,112880.0,5.6450517]
[1760520311445,1e-08,112890.0,112880.0,0.38102942]
[1760520311648,1e-08,112890.0,112880.0,0.38302942]
[1760520312110,1e-08,112890.0,112880.0,0.38102942]
[1760520312334,1e-08,112890.0,112880.0,0.38302942]
[1760520312907,1e-08,112890.0,112880.0,1.06734378]
[1760520313111,1e-08,112890.0,112880.0,1.06834378]
[1760520313309,1e-08,112890.0,112880.0,1.06934378]
[1760520313511,1e-08,112890.0,112880.0,1.40934378]
[1760520314720,1e-08,112890.0,112880.0,1.41882619]
[1760520316135,1e-08,112890.0,112880.0,0.76669411]
[1760520317347,1e-08,112890.0,112880.0,1.41882619]
[1760520317856,1e-08,112890.0,112880.0,0.76669411]
[1760520318033,1e-08,112890.0,112880.0,1.41882619]
[1760520318455,1e-08,112890.0,112880.0,0.76669411]
[1760520322694,1e-08,112890.0,112880.0,0.65453411]
[1760520322855,1e-08,112890.0,112880.0,0.76669411]
[1760520323052,1e-08,112890.0,112880.0,0.65453411]
[1760520323498,1e-08,112890.0,112880.0,1.41882619]
[1760520324527,1e-08,112890.0,112880.0,0.76669411]
[1760520325373,1e-08,112890.0,112880.0,1.30666619]
[1760520325833,1e-08,112890.0,112880.0,1.41878619]
[1760520327700,1e-08,112890.0,112880.0,0.76665411]
[1760520328102,0.18428916,112920.0,112910.0,0.17713222]
[1760520328531,0.00717188,112920.0,112910.0,0.17713222]
[1760520328873,0.18428842,112920.0,112910.0,0.17713222]
[1760520329259,0.18437692,112920.0,112910.0,0.17713222]
[1760520329515,0.18437692,112920.0,112910.0,0.28921222]
[1760520329712,0.18437692,112920.0,112910.0,0.17713222]
[1760520330165,0.17713222,112910.0,112890.0,0.17715474]
[1760520330365,0.17714791,112900.0,112890.0,0.17716361]
[1760520330538,0.17714791,112900.0,112890.0,0.28928361]
[1760520330539,0.82927999,112900.0,112890.0,0.28928361]
[1760520330709,0.82927999,112900.0,112890.0,0.17716361]
[1760520331042,0.82927999,112900.0,112890.0,0.28928361]
[1760520331257,0.83812091,112910.0,112890.0,0.29028361]
[1760520331423,1.17812091,112910.0,112900.0,0.01771479]
[1760520332228,0.17714791,112900.0,112890.0,0.29024361]
[1760520332440,0.17714791,112900.0,112890.0,0.29124361]
[1760520332655,0.17714791,112900.0,112890.0,0.29024361]
[1760520332863,0.17714791,112900.0,112890.0,0.28924361]
[1760520333303,0.17714791,112900.0,112890.0,0.29024361]
[1760520333472,0.17714791,112900.0,112890.0,0.17816361]
[1760520333673,0.17714791,112900.0,112890.0,0.29124361]
[1760520333997,1.17812091,112910.0,112890.0,0.17916361]
[1760520334157,1.17812091,112910.0,112900.0,0.01771479]
[1760520335551,0.52598883,112910.0,112900.0,0.01771479]
[1760520335705,0.17714791,112900.0,112890.0,0.001]
[1760520335904,0.17714791,112900.0,112880.0,0.28925809]
[1760520335905,0.17716361,112890.0,112880.0,0.28925809]
[1760520336229,0.17716361,112890.0,112880.0,0.11208]
[1760520336796,0.51716361,112890.0,112870.0,0.24894306]
[1760520336983,0.51716361,112890.0,112860.0,0.19550002]
[1760520336984,0.1771793,112880.0,112860.0,0.18607123]
[1760520337194,0.1771793,112880.0,112870.0,0.289275]
[1760520337394,1.16929569,112890.0,112880.0,0.1771793]
[1760520337669,0.1771793,112880.0,112870.0,0.289275]
[1760520337863,0.51716361,112890.0,112880.0,0.1771793]
[1760520338038,0.52602179,112890.0,112880.0,0.1771793]
[1760520338302,0.52611025,112890.0,112880.0,0.1771793]
[1760520338682,0.53517329,112890.0,112870.0,0.289275]
[1760520338888,0.1771793,112880.0,112870.0,0.28927102]
[1760520339111,0.82931138,112880.0,112860.0,0.18607123]
[1760520339294,1.16931138,112880.0,112870.0,0.177195]
[1760520339444,0.34,112880.0,112870.0,0.177195]
[1760520340099,0.5171793,112880.0,112870.0,0.177195]
[1760520340303,8.846e-05,112890.0,112880.0,0.1771793]
[1760520340478,0.34008846,112890.0,112880.0,0.1771793]
[1760520340679,0.51725207,112890.0,112880.0,0.1771793]
[1760520341073,0.34008846,112890.0,112880.0,0.2892593]
[1760520341779,0.34008846,112890.0,112880.0,0.2902593]
[1760520342538,0.34008846,112890.0,112880.0,0.2912593]
[1760520343579,8.846e-05,112890.0,112880.0,0.2912593]
[1760520344847,0.50008846,112890.0,112880.0,0.2912593]
[1760520347406,0.50008846,112890.0,112880.0,0.1791793]
[1760520347623,0.50008846,112890.0,112880.0,0.2912193]
[1760520347844,0.50008846,112890.0,112880.0,0.1791793]
[1760520348175,0.50008846,112890.0,112880.0,0.2911793]
[1760520348520,0.50008846,112890.0,112880.0,0.1791793]
[1760520348728,0.50008846,112890.0,112880.0,0.2911793]
[1760520348941,0.50008846,112890.0,112880.0,0.1791793]
[1760520349321,1.20780603,112890.0,112880.0,0.002]
[1760520349570,1.54780603,112890.0,112880.0,0.002]
[1760520349770,1.54780603,112890.0,112880.0,0.1791793]
[1760520349999,1.54780603,112890.0,112880.0,0.19689723]
[1760520350000,0.50008846,112890.0,112880.0,0.19689723]
[1760520350216,0.50008846,112890.0,112880.0,0.1791793]
[1760520350423,0.50008846,112890.0,112880.0,0.2911793]
[1760520351190,0.50008846,112890.0,112880.0,0.2901793]
[1760520351372,0.50008846,112890.0,112880.0,0.1771793]
[1760520351751,0.50008846,112890.0,112880.0,0.2891793]
[1760520352214,0.50008846,112890.0,112880.0,0.1781793]
[1760520352426,0.50008846,112890.0,112880.0,0.2911793]
[1760520358975,0.2798166,112890.0,112880.0,0.2911793]
[1760520360774,0.2798166,112890.0,112880.0,0.91142338]
[1760520361172,0.2798166,112890.0,112880.0,0.38086942]
[1760520361449,0.2798166,112890.0,112880.0,0.2910993]
[1760520361677,0.2798166,112890.0,112880.0,0.2911393]
[1760520367465,0.2798166,112890.0,112880.0,0.1791793]
[1760520367622,0.2798166,112890.0,112880.0,0.2910993]
[1760520368259,0.2798166,112890.0,112880.0,0.82165326]
[1760520368781,0.2798166,112890.0,112880.0,0.2910993]
[1760520369358,0.2798166,112890.0,112880.0,0.82161326]
[1760520369569,0.2798166,112890.0,112880.0,0.79942338]
[1760520369795,0.2798166,112890.0,112880.0,0.91134338]
[1760520370205,0.2798166,112890.0,112880.0,0.79942338]
[1760520370409,0.2798166,112890.0,112880.0,0.91134338]
[1760520370717,0.2798166,112890.0,112880.0,0.79942338]
[1760520370926,0.2798166,112890.0,112880.0,0.91130338]
[1760520371245,0.2798166,112890.0,112880.0,0.26886942]
[1760520371463,0.2798166,112890.0,112880.0,0.38074942]
[1760520371838,0.2798166,112890.0,112880.0,0.53336942]
[1760520372234,0.2798166,112890.0,112880.0,0.4436793]
[1760520372639,0.2798166,112890.0,112880.0,0.2910993]
[1760520372814,0.2798166,112890.0,112880.0,0.2910593]
[1760520373219,0.2798166,112890.0,112880.0,0.11388]
[1760520373382,0.2798166,112890.0,112880.0,0.1791793]
[1760520373759,0.2798166,112890.0,112880.0,0.2910593]
[1760520374367,0.2798166,112890.0,112880.0,0.1791793]
[1760520374826,0.2798166,112890.0,112880.0,0.2910593]
[1760520375034,0.2798166,112890.0,112880.0,0.1791793]
[1760520375246,0.2798166,112890.0,112880.0,0.2910593]
[1760520375469,0.2798166,112890.0,112880.0,0.1791793]
[1760520376042,0.2798166,112890.0,112880.0,0.2910593]
[1760520376300,0.2798166,112890.0,112880.0,0.1791793]
[1760520376501,0.2798166,112890.0,112880.0,0.2910593]
[1760520376874,0.2798166,112890.0,112880.0,0.1791793]
[1760520377266,0.2798166,112890.0,112880.0,0.2910593]
[1760520377916,0.2798166,112890.0,112880.0,0.1791793]
[1760520378144,0.2798166,112890.0,112880.0,0.2910593]
[1760520378351,0.2798166,112890.0,112880.0,0.1791793]
[1760520378754,0.2798166,112890.0,112880.0,0.2910193]
[1760520379118,0.2798166,112890.0,112880.0,0.1791793]
[1760520379467,0.2798166,112890.0,112880.0,0.2910193]
[1760520380057,0.2798166,112890.0,112880.0,0.1791793]
[1760520380204,0.2798166,112890.0,112880.0,0.2910193]
[1760520382035,0.2798166,112890.0,112880.0,0.70973326]
[1760520382235,0.2798166,112890.0,112880.0,0.2910193]
[1760520383076,0.2798166,112890.0,112880.0,0.1791793]
[1760520383255,0.2798166,112890.0,112880.0,0.2910193]
[1760520384484,0.2798166,112890.0,112880.0,0.2909793]
[1760520386387,0.2798166,112890.0,112880.0,0.1791793]
[1760520386716,0.2798166,112890.0,112880.0,0.2909793]
[1760520387259,0.2798166,112890.0,112880.0,0.1791793]
[1760520387679,0.2798166,112890.0,112880.0,0.2909793]
[1760520388398,0.2798166,112890.0,112880.0,0.1791793]
[1760520388607,0.2798166,112890.0,112880.0,0.2909793]
[1760520389377,0.2798166,112890.0,112880.0,1.0377904]
[1760520389978,0.2798166,112890.0,112880.0,0.2909793]
[1760520390351,0.2798166,112890.0,112880.0,0.55258485]
[1760520390540,0.2798166,112890.0,112880.0,0.2909793]
[1760520390777,0.2798166,112890.0,112880.0,0.66438485]
[1760520391756,0.2798166,112890.0,112880.0,1.0377904]
[1760520392152,0.07824057,112890.0,112880.0,1.0377904]
[1760520392351,0.07824057,112890.0,112880.0,0.9259904]
[1760520392552,0.07824057,112890.0,112880.0,1.50088607]
[1760520392755,0.07824057,112890.0,112880.0,1.53706835]
[1760520392996,0.07824057,112890.0,112880.0,1.42526835]
[1760520393147,0.07824057,112890.0,112880.0,1.0518628]
[1760520393535,1e-08,112890.0,112880.0,1.76526835]
[1760520393886,1e-08,112890.0,112880.0,1.87706835]
[1760520394086,1e-08,112890.0,112880.0,6.87706835]
[1760520394303,1e-08,112890.0,112880.0,6.77376834]
[1760520394524,1e-08,112890.0,112880.0,6.88556834]
[1760520394733,1e-08,112890.0,112880.0,6.86485328]
[1760520394911,1e-08,112890.0,112880.0,6.97665328]
[1760520395110,1e-08,112890.0,112880.0,6.86485328]
[1760520395314,1e-08,112890.0,112880.0,6.97665328]
[1760520395519,1e-08,112890.0,112880.0,6.86485328]
[1760520395733,1e-08,112890.0,112880.0,6.97865328]
[1760520396063,1e-08,112890.0,112880.0,6.97765328]
[1760520396233,1e-08,112890.0,112880.0,6.99538328]
[1760520396596,1e-08,112890.0,112880.0,6.97965328]
[1760520397355,1e-08,112890.0,112880.0,6.38951977]
[1760520399006,1e-08,112890.0,112880.0,6.27771977]
[1760520399233,1e-08,112890.0,112880.0,1.27771977]
[1760520399694,1e-08,112890.0,112880.0,1.25108579]
[1760520400089,1e-08,112890.0,112880.0,1.36288579]
[1760520400296,1e-08,112890.0,112880.0,1.25108579]
[1760520400450,1e-08,112890.0,112880.0,1.36288579]
[1760520401053,1e-08,112890.0,112880.0,1.18563483]
[1760520401259,1e-08,112890.0,112880.0,0.1811793]
[1760520401464,1e-08,112890.0,112880.0,0.2929793]
[1760520401696,1e-08,112890.0,112880.0,0.1811793]
[1760520401898,1e-08,112890.0,112880.0,0.1791793]
[1760520402232,0.17716362,112890.0,112880.0,0.2889793]
[1760520402365,0.17716362,112890.0,112880.0,0.1791793]
[1760520403778,0.17716362,112890.0,112880.0,0.2899793]
[1760520404187,1e-08,112890.0,112880.0,0.2899793]
[1760520404770,1e-08,112890.0,112880.0,0.1781793]
[1760520405223,1e-08,112890.0,112880.0,0.2899793]
[1760520407238,1e-08,112890.0,112880.0,0.1781793]
[1760520407768,1e-08,112890.0,112880.0,0.2899793]
[1760520408563,0.17716362,112890.0,112880.0,0.2899793]
[1760520408983,0.17716362,112890.0,112880.0,0.1781793]
[1760520409276,0.17716362,112890.0,112880.0,0.2899793]
[1760520409445,0.17716362,112890.0,112880.0,0.1781793]
[1760520409812,0.17716362,112890.0,112880.0,0.2889793]
[1760520410213,0.1771793,112880.0,112870.0,0.17718999]
[1760520410890,0.51716362,112890.0,112880.0,0.1771793]
[1760520411411,0.34000001,112890.0,112880.0,0.1771793]
[1760520412173,0.51716362,112890.0,112880.0,0.1771793]
[1760520414715,0.52643037,112890.0,112880.0,0.1771793]
[1760520417476,0.34926676,112890.0,112880.0,0.1771793]
[1760520418121,0.52643037,112890.0,112880.0,0.1771793]
[1760520418490,0.18643036,112890.0,112880.0,0.1771793]
[1760520420984,0.55995294,112890.0,112880.0,0.1771793]
[1760520421178,0.55995294,112890.0,112870.0,0.28898999]
[1760520421382,0.1771793,112880.0,112870.0,0.17719458]
[1760520421613,0.55070188,112880.0,112860.0,0.52607123]
[1760520421972,0.55070188,112880.0,112870.0,0.177195]
[1760520423120,0.1771793,112880.0,112870.0,0.177195]
[1760520425051,0.55956084,112880.0,112860.0,0.1772107]
[1760520425253,0.55071758,112870.0,112860.0,0.1772107]
[1760520425579,0.177195,112870.0,112860.0,0.2890107]
[1760520425786,0.177195,112870.0,112860.0,0.1772107]
[1760520426032,0.177195,112870.0,112860.0,0.2890107]
[1760520426173,0.55956084,112880.0,112860.0,0.2890107]
[1760520426784,0.55956084,112880.0,112860.0,0.1772107]
[1760520426978,0.55956084,112880.0,112860.0,0.2890107]
[1760520427241,0.55956084,112880.0,112860.0,0.1772107]
[1760520427588,0.55956084,112880.0,112860.0,0.2890107]
[1760520427786,0.55956084,112880.0,112870.0,0.177195]
[1760520429621,0.55956084,112880.0,112860.0,0.2890107]
[1760520430540,0.18603826,112880.0,112860.0,0.2890107]
[1760520430872,0.55956084,112880.0,112860.0,0.2890107]
[1760520431550,0.55956084,112880.0,112870.0,0.177195]
[1760520432464,0.37352258,112880.0,112870.0,0.177195]
[1760520432671,0.55070188,112880.0,112870.0,0.177195]
[1760520433244,0.20380318,112900.0,112890.0,0.17716361]
[1760520433416,0.35643021,112900.0,112890.0,0.17716361]
[1760520433619,0.51714791,112900.0,112890.0,0.17716361]
[1760520433864,0.21264254,112910.0,112900.0,0.17714791]
[1760520434038,0.21228346,112920.0,112900.0,0.17714791]
[1760520434254,0.17713222,112910.0,112900.0,0.17714791]
[1760520434645,0.17714791,112900.0,112890.0,0.17716361]
[1760520435255,0.55952788,112900.0,112880.0,0.2889793]
[1760520435457,0.1860053,112900.0,112890.0,0.17716361]
[1760520438300,0.56847742,112910.0,112890.0,0.17716361]
[1760520438481,0.90847742,112910.0,112890.0,0.17716361]
[1760520438679,0.17714791,112900.0,112890.0,0.28896361]
[1760520439352,0.90847742,112910.0,112900.0,0.17714791]
[1760520439726,0.52609823,112910.0,112890.0,0.17716361]
[1760520439917,0.17714791,112900.0,112890.0,0.17716361]
[1760520440116,0.17714791,112900.0,112890.0,0.28896361]
[1760520440940,0.17714791,112900.0,112890.0,0.17716361]
[1760520441142,0.17714791,112900.0,112890.0,0.28896361]
[1760520442088,0.17714791,112900.0,112890.0,0.1118]
[1760520442293,0.17714791,112900.0,112890.0,0.28896361]
[1760520442634,0.17714791,112900.0,112890.0,0.17716361]
[1760520442830,0.17714791,112900.0,112890.0,0.28896361]
[1760520443036,0.17714791,112900.0,112890.0,0.17716361]
[1760520443436,0.17714791,112900.0,112890.0,0.28896361]
[1760520443617,0.17714791,112900.0,112890.0,0.17716361]
[1760520444023,0.17714791,112900.0,112890.0,0.28896361]
[1760520444248,0.17714791,112900.0,112890.0,0.17716361]
[1760520444692,0.86154659,112910.0,112890.0,0.17716361]
[1760520444912,0.86154659,112910.0,112890.0,0.28896361]
[1760520444913,0.17714791,112900.0,112890.0,0.28896361]
[1760520445078,0.17714791,112900.0,112890.0,0.17716361]
[1760520445461,0.55067049,112900.0,112890.0,0.1118]
[1760520445667,0.1771793,112880.0,112870.0,0.25780685]
[1760520445929,0.1771793,112880.0,112870.0,0.184049]
[1760520446153,0.1771793,112880.0,112870.0,0.1122969]
[1760520446314,0.55070188,112880.0,112870.0,0.0004969]
[1760520448531,0.55070188,112880.0,112870.0,0.0014969]
[1760520448532,0.61307569,112880.0,112870.0,0.0014969]
[1760520448750,0.91962436,112880.0,112870.0,0.0014969]
[1760520448946,0.54610178,112880.0,112870.0,0.0014969]
[1760520449171,0.89070188,112880.0,112870.0,0.0014969]
[1760520449674,0.89070188,112880.0,112870.0,0.0004969]
[1760520449886,5.72601377,112880.0,112870.0,0.0004969]
[1760520450468,5.7451213,112880.0,112870.0,0.0004969]
[1760520450892,6.1268414,112880.0,112870.0,1e-08]
[1760520451308,6.03358526,112880.0,112870.0,1e-08]
[1760520452514,6.03458526,112880.0,112870.0,1e-08]
[1760520452704,6.03358526,112880.0,112870.0,1e-08]
[1760520452848,6.03943445,112880.0,112870.0,1e-08]
[1760520453049,6.03458526,112880.0,112870.0,1e-08]
[1760520453652,6.73746061,112880.0,112870.0,1e-08]
[1760520453905,6.83507266,112880.0,112870.0,1e-08]
[1760520454109,6.83506032,112880.0,112870.0,1e-08]